bitfinex-derivatives/quotes_BTCF0:USTF0_20250127
["timestamp","ask_amount","ask_price","bid_price","bid_amount"]
[1738012967680,0.00014699,101940.0,101920.0,0.57671405]
[1738012967887,0.00014699,101940.0,101930.0,0.196261]
[1738012968687,0.18719758,101940.0,101930.0,0.196261]
[1738012969183,0.18719758,101940.0,101930.0,0.21160015]
[1738012969486,0.18719758,101940.0,101930.0,0.6259232]
[1738012969685,0.18719758,101940.0,101930.0,0.8221842]
[1738012969880,1.05917061,101970.0,101950.0,0.196206]
[1738012970079,1.05973062,101970.0,101950.0,1.696206]
[1738012970279,1.05917061,101970.0,101950.0,1.696206]
[1738012970478,1.05917061,101970.0,101950.0,1.5]
[1738012970780,1.05917061,101970.0,101960.0,0.196203]
[1738012970975,0.556987,101970.0,101960.0,0.196203]
[1738012971184,0.36094699,101970.0,101950.0,0.00014699]
[1738012971376,0.196256,101940.0,101920.0,0.196272]
[1738012971581,0.557056,101940.0,101930.0,0.196261]
[1738012972177,0.557056,101940.0,101930.0,1.696261]
[1738012972385,0.557056,101940.0,101930.0,0.196261]
[1738012972581,0.3608,101940.0,101930.0,0.196261]
[1738012972779,0.00014699,101950.0,101940.0,0.196242]
[1738012972979,0.00014699,101950.0,101940.0,0.40915605]
[1738012973589,0.55716899,101950.0,101940.0,1.696242]
[1738012973783,0.55716899,101950.0,101940.0,0.196242]
[1738012974087,0.20857892,101940.0,101930.0,0.557061]
[1738012974287,0.20857892,101940.0,101930.0,1.696261]
[1738012974690,0.20857892,101940.0,101930.0,2.357061]
[1738012974986,0.06777892,101940.0,101930.0,2.357061]
[1738012975386,0.06777892,101940.0,101930.0,2.057061]
[1738012975581,0.06777892,101940.0,101930.0,2.357061]
[1738012975986,0.00714699,101950.0,101930.0,2.1608]
[1738012976293,0.24729841,101960.0,101950.0,0.196222]
[1738012976484,0.24729841,101960.0,101950.0,0.557022]
[1738012976690,0.10555941,101960.0,101950.0,0.857022]
[1738012976893,0.3775771,101970.0,101960.0,0.196203]
[1738012977093,0.3775771,101970.0,101960.0,0.76991705]
[1738012977387,0.60697454,101990.0,101980.0,0.196165]
[1738012977588,0.60641453,101990.0,101980.0,1.43067905]
[1738012978083,0.00014699,102000.0,101990.0,0.196146]
[1738012978288,0.00014699,102000.0,101990.0,0.556946]
[1738012979088,0.1804,102020.0,102010.0,0.196107]
[1738012979289,0.5412,102020.0,102010.0,0.196107]
[1738012979797,0.5412,102020.0,102010.0,1.696107]
[1738012980294,0.737288,102020.0,102010.0,1.696107]
[1738012980487,0.5442,102020.0,102010.0,1.696107]
[1738012980894,0.740288,102020.0,102010.0,1.5]
[1738012981203,0.196107,102010.0,102000.0,0.00014699]
[1738012981495,0.556907,102010.0,102000.0,0.00014699]
[1738012981797,0.76982105,102010.0,102000.0,0.00014699]
[1738012982097,0.61851088,102010.0,101980.0,0.00147077]
[1738012982294,0.196168,101980.0,101960.0,0.196196]
[1738012982497,0.7216,101970.0,101960.0,0.196196]
[1738012982991,0.3608,101970.0,101960.0,0.196196]
[1738012983192,0.917784,101970.0,101960.0,0.196196]
[1738012983391,0.7216,101970.0,101960.0,0.196196]
[1738012983584,0.7216,101970.0,101960.0,1.696196]
[1738012983785,0.7216,101970.0,101960.0,1.504]
[1738012983992,0.917784,101970.0,101960.0,1.504]
[1738012984500,0.7216,101970.0,101960.0,1.700203]
[1738012984888,0.45164699,101980.0,101970.0,0.196184]
[1738012985999,0.36094699,101980.0,101970.0,0.196184]
[1738012986390,0.00014699,101980.0,101970.0,0.41209805]
[1738012986697,0.3608,102010.0,102000.0,0.196116]
[1738012987102,0.3608,102010.0,102000.0,0.40903005]
[1738012987303,0.3608,102010.0,102000.0,1.90903005]
[1738012987696,0.18261822,102020.0,102010.0,0.196107]
[1738012988201,0.54341822,102020.0,102010.0,0.196107]
[1738012988803,0.73950622,102020.0,102010.0,0.196107]
[1738012989204,0.196107,102010.0,102000.0,1.5]
[1738012989499,0.196126,102000.0,101990.0,0.00014699]
[1738012989805,0.196126,102000.0,101970.0,0.19764975]
[1738012989806,0.196159,101990.0,101970.0,0.19764975]
[1738012990002,0.3608,102000.0,101970.0,0.00147075]
[1738012990003,0.917765,101980.0,101970.0,0.00147075]
[1738012990196,0.7216,101980.0,101950.0,0.196222]
[1738012990396,0.3608,101960.0,101950.0,0.196222]
[1738012990797,0.3608,101960.0,101950.0,1.696222]
[1738012990992,0.08594699,101970.0,101950.0,1.71291405]
[1738012991205,0.00014699,101970.0,101960.0,0.196203]
[1738012991390,0.36094699,101970.0,101960.0,0.196203]
[1738012991596,0.00014699,101970.0,101960.0,0.196203]
[1738012992804,0.36094699,101970.0,101960.0,0.196203]
[1738012992995,0.195203,101960.0,101950.0,1.696219]
[1738012993197,0.196222,101950.0,101940.0,0.00014699]
[1738012993403,0.40259683,101950.0,101930.0,0.00147125]
[1738012993601,0.76995605,101940.0,101930.0,0.00147125]
[1738012993802,0.557042,101940.0,101930.0,0.00147125]
[1738012994299,0.3608,101940.0,101910.0,0.25032293]
[1738012994505,0.67656855,101960.0,101940.0,0.196225]
[1738012994701,0.36094699,101950.0,101940.0,0.196225]
[1738012995302,0.36094699,101950.0,101940.0,1.696225]
[1738012995904,0.35994699,101950.0,101940.0,1.5]
[1738012996206,0.55616899,101950.0,101940.0,1.5]
[1738012996408,0.60096582,101950.0,101940.0,1.5]
[1738012996598,0.196258,101940.0,101920.0,0.00014699]
[1738012996806,0.554061,101930.0,101920.0,0.00014699]
[1738012997006,0.914861,101930.0,101920.0,1.50014699]
[1738012997402,0.95965783,101930.0,101920.0,1.50014699]
[1738012997708,0.19628,101920.0,101910.0,0.03740888]
[1738012997901,0.19632,101900.0,101880.0,0.196353]
[1738012998109,0.3608,101890.0,101880.0,1.696353]
[1738012998406,0.19642,101850.0,101830.0,0.00147253]
[1738012998597,0.7216,101840.0,101830.0,0.00147253]
[1738012998804,0.8051,101840.0,101830.0,0.00014699]
[1738012999198,0.8041,101840.0,101830.0,0.00014699]
[1738012999606,1.000534,101840.0,101820.0,0.2847936]
[1738012999910,0.3608,101830.0,101820.0,0.2847936]
[1738013000117,0.3608,101830.0,101820.0,0.22828814]
[1738013000514,0.557254,101830.0,101820.0,0.08978814]
[1738013000707,0.557254,101830.0,101810.0,0.2847936]
[1738013000909,0.3608,101820.0,101810.0,0.28494059]
[1738013001118,0.557273,101820.0,101810.0,0.28494059]
[1738013001503,0.3608,101820.0,101810.0,0.28494059]
[1738013001711,0.36094699,101830.0,101810.0,0.28494059]
[1738013001911,0.3608,101820.0,101810.0,0.28494059]
[1738013002110,0.36094699,101830.0,101810.0,0.48143259]
[1738013002315,0.36094699,101830.0,101810.0,0.28494059]
[1738013002617,0.00014699,101830.0,101820.0,0.196473]
[1738013003317,0.3608,101870.0,101820.0,0.6608]
[1738013003514,0.3608,101870.0,101840.0,0.196433]
[1738013003716,0.3608,101870.0,101840.0,0.557233]
[1738013004019,0.557178,101870.0,101840.0,0.196433]
[1738013004209,0.557178,101870.0,101840.0,0.557233]
[1738013004516,0.557178,101870.0,101840.0,0.196433]
[1738013004715,0.55732499,101870.0,101840.0,0.19657999]
[1738013005016,0.55732499,101870.0,101840.0,0.55737999]
[1738013005218,0.08692597,101850.0,101840.0,0.19657999]
[1738013005425,0.08692597,101850.0,101840.0,0.00014699]
[1738013005918,0.08692597,101850.0,101840.0,0.36094699]
[1738013006517,0.08692597,101850.0,101840.0,0.00014699]
[1738013006914,0.08792597,101850.0,101840.0,0.00014699]
[1738013007223,0.08892597,101850.0,101840.0,0.19658199]
[1738013008527,0.002,101850.0,101840.0,0.19658199]
[1738013009010,0.3628,101850.0,101840.0,1.50014699]
[1738013009210,0.559215,101850.0,101840.0,0.00014699]
[1738013009416,0.196465,101830.0,101810.0,0.196485]
[1738013009605,0.3608,101820.0,101810.0,0.196485]
[1738013009810,0.557265,101830.0,101810.0,1.90939905]
[1738013010116,0.3608,101830.0,101820.0,0.196473]
[1738013011813,0.3608,101830.0,101820.0,0.198473]
[1738013012021,0.00014699,101840.0,101830.0,0.196454]
[1738013012216,0.36094699,101840.0,101830.0,0.40936805]
[1738013012524,0.36094699,101840.0,101830.0,0.196454]
[1738013012817,0.36094699,101840.0,101830.0,1.696454]
[1738013013509,0.36094699,101840.0,101830.0,1.698454]
[1738013013905,0.00014699,101840.0,101830.0,1.91136805]
[1738013014116,0.00014699,101840.0,101830.0,2.57216805]
[1738013015420,0.44772597,101870.0,101860.0,0.196396]
[1738013015717,0.08692597,101870.0,101860.0,0.196396]
[1738013015917,0.08692597,101870.0,101860.0,0.3608]
[1738013016113,0.44772597,101870.0,101860.0,0.40931005]
[1738013016616,0.09892597,101870.0,101860.0,1.07011005]
[1738013016914,0.00014699,101880.0,101870.0,0.196377]
[1738013017122,0.14609823,101890.0,101870.0,0.3608]
[1738013017320,0.14609823,101890.0,101880.0,0.40927105]
[1738013017516,0.14609823,101890.0,101880.0,2.27007105]
[1738013017921,0.3608,101910.0,101880.0,2.07371405]
[1738013018216,0.36094699,101910.0,101900.0,0.40923305]
[1738013018817,0.00014699,101910.0,101900.0,0.40923305]
[1738013019019,0.00014699,101910.0,101900.0,0.77003305]
[1738013019523,0.14609823,101920.0,101910.0,0.1963]
[1738013019718,0.14609823,101920.0,101910.0,0.5571]
[1738013020121,0.14609823,101920.0,101910.0,0.77001405]
[1738013020716,0.14709823,101920.0,101910.0,0.77001405]
[1738013021112,0.14709823,101920.0,101910.0,0.40921405]
[1738013021423,0.50789823,101920.0,101910.0,0.40921405]
[1738013021716,0.55808,101920.0,101910.0,0.40921405]
[1738013021918,0.1963,101910.0,101900.0,0.19746199]
[1738013022115,0.3608,101910.0,101900.0,0.19746199]
[1738013022319,0.5571,101910.0,101900.0,0.19646199]
[1738013023323,0.5571,101910.0,101900.0,0.20046199]
[1738013023724,0.3608,101910.0,101900.0,0.20046199]
[1738013023927,0.3608,101920.0,101910.0,0.1963]
[1738013024117,0.3608,101920.0,101910.0,0.40921405]
[1738013024423,0.3608,101920.0,101910.0,1.71291405]
[1738013024623,0.3608,101920.0,101910.0,1.6963]
[1738013025923,0.50789823,101920.0,101910.0,1.6963]
[1738013026125,0.14709823,101920.0,101910.0,1.6963]
[1738013026627,0.14709823,101920.0,101910.0,1.49008793]
[1738013027023,0.03301923,101920.0,101910.0,1.85088793]
[1738013027325,0.17546487,101930.0,101920.0,0.19628]
[1738013027528,0.17546487,101930.0,101920.0,2.26999405]
[1738013027723,0.61546811,101960.0,101950.0,0.196223]
[1738013027724,0.16866811,101960.0,101950.0,0.196223]
[1738013027918,0.16866811,101960.0,101950.0,0.76993705]
[1738013028123,1e-08,101960.0,101950.0,1.06993705]
[1738013028320,0.39579184,101990.0,101950.0,0.87371405]
[1738013028524,0.45418365,101990.0,101980.0,0.76987905]
[1738013029629,0.45518365,101990.0,101980.0,0.76987905]
[1738013032526,0.001,101990.0,101980.0,0.76987905]
[1738013033026,0.001,101990.0,101980.0,2.26987905]
[1738013033629,0.001,101990.0,101980.0,0.76987905]
[1738013033934,0.3618,101990.0,101960.0,0.00014699]
[1738013034136,0.19617,101980.0,101970.0,0.196173]
[1738013034540,0.55697,101980.0,101970.0,0.196173]
[1738013035830,0.55697,101980.0,101970.0,0.199173]
[1738013036028,0.3608,101990.0,101970.0,0.21691405]
[1738013036229,0.556949,101990.0,101980.0,0.196165]
[1738013036628,0.3608,101990.0,101970.0,0.21691405]
[1738013036826,0.3608,101990.0,101980.0,0.196149]
[1738013037430,0.00014699,102000.0,101990.0,0.196146]
[1738013037632,0.00014699,102000.0,101990.0,0.40906005]
[1738013038029,0.00014699,102000.0,101990.0,1.90906005]
[1738013038834,0.00614699,102000.0,101990.0,1.90906005]
[1738013040146,0.36694699,102000.0,101990.0,1.90906005]
[1738013040530,0.00614699,102000.0,101990.0,1.90906005]
[1738013040728,9.9e-07,102000.0,101990.0,2.26986005]
[1738013041743,0.3608,102020.0,102010.0,0.196107]
[1738013041932,0.556884,102030.0,102000.0,0.57371405]
[1738013042131,0.36089802,102030.0,102020.0,0.196088]
[1738013043451,0.196088,102020.0,102010.0,0.197103]
[1738013043632,0.556888,102020.0,102010.0,0.197103]
[1738013044442,0.3608,102020.0,102010.0,0.40901705]
[1738013044636,0.36789802,102030.0,102010.0,0.21291405]
[1738013044832,0.36689802,102030.0,102020.0,0.196088]
[1738013045031,0.36089802,102030.0,102020.0,0.196088]
[1738013045232,0.36089802,102030.0,102020.0,0.40900205]
[1738013045432,0.36089802,102030.0,102020.0,0.196088]
[1738013046140,0.36689802,102030.0,102020.0,0.197088]
[1738013046527,0.36789802,102030.0,102020.0,0.197088]
[1738013046945,0.36789802,102030.0,102020.0,0.19694377]
[1738013047533,0.00709802,102030.0,102020.0,0.55774377]
[1738013048239,0.00609802,102030.0,102020.0,0.55774377]
[1738013048544,0.00909802,102030.0,102020.0,0.55774377]
[1738013048843,2e-08,102030.0,102020.0,1.07065782]
[1738013049141,2e-08,102030.0,102020.0,1.15925782]
[1738013049336,2e-08,102030.0,102020.0,2.65925782]
[1738013049747,0.11598451,102050.0,102040.0,0.40896405]
[1738013049940,0.11598451,102050.0,102040.0,0.76976405]
[1738013050141,0.11598451,102050.0,102040.0,0.40896405]
[1738013050645,0.11598451,102050.0,102040.0,0.76976405]
[1738013051438,0.11998451,102050.0,102040.0,0.76976405]
[1738013051937,0.11598451,102050.0,102040.0,0.76976405]
[1738013053143,0.644894,102070.0,102060.0,0.196011]
[1738013053440,0.65358451,102080.0,102070.0,0.195992]
[1738013053645,0.84955751,102080.0,102070.0,0.195992]
[1738013054143,0.84955751,102080.0,102070.0,1.695992]
[1738013054644,0.84955751,102080.0,102070.0,1.696992]
[1738013054645,0.85455751,102080.0,102070.0,1.696992]
[1738013054844,0.85455751,102080.0,102070.0,0.196992]
[1738013055145,0.19601,102070.0,102060.0,0.196008]
[1738013055346,0.196011,102060.0,102050.0,1.69616999]
[1738013055541,0.556811,102060.0,102050.0,0.19616999]
[1738013055733,0.3608,102060.0,102020.0,0.26193405]
[1738013055934,0.55687,102030.0,102020.0,0.196073]
[1738013056137,0.55687,102030.0,102020.0,1.696073]
[1738013056540,0.3608,102030.0,102020.0,1.90898705]
[1738013057136,0.556869,102030.0,102020.0,1.696073]
[1738013057542,0.556869,102030.0,102020.0,1.700073]
[1738013057848,0.556869,102030.0,102020.0,1.702073]
[1738013058855,0.556869,102030.0,102020.0,1.506]
[1738013059146,0.647669,102030.0,102020.0,1.506]
[1738013059751,0.647669,102030.0,102020.0,1.702088]
[1738013060140,0.4516,102030.0,102020.0,1.702088]
[1738013060342,0.50677433,102030.0,102020.0,1.702088]
[1738013060741,0.50677433,102030.0,102020.0,1.506]
[1738013060947,0.70284333,102030.0,102020.0,1.702088]
[1738013061148,0.50677433,102030.0,102020.0,1.702088]
[1738013061344,0.14597433,102030.0,102020.0,0.41500205]
[1738013061545,0.14597433,102030.0,102020.0,0.77580205]
[1738013061859,0.14597433,102030.0,102020.0,2.27580205]
[1738013062151,0.1743454,102040.0,102030.0,0.196069]
[1738013062345,0.1743454,102040.0,102030.0,0.40898305]
[1738013062948,0.3703954,102040.0,102030.0,0.196069]
[1738013063345,0.3703954,102040.0,102020.0,1.702085]
[1738013063346,0.196069,102030.0,102020.0,1.702085]
[1738013063546,0.556869,102030.0,102020.0,1.698085]
[1738013064454,0.556869,102030.0,102020.0,1.5]
[1738013064644,0.556869,102030.0,102010.0,0.00014699]
[1738013064645,0.196088,102020.0,102010.0,0.00014699]
[1738013064848,0.196107,102010.0,102000.0,0.00147025]
[1738013065151,0.196107,102010.0,101970.0,0.96939466]
[1738013065152,0.556907,102010.0,101970.0,0.36651261]
[1738013065350,0.556965,101980.0,101970.0,0.17033561]
[1738013065552,0.556965,101980.0,101970.0,0.36651961]
[1738013065741,0.556965,101980.0,101970.0,1.86651961]
[1738013066248,0.3608,101980.0,101970.0,2.07943366]
[1738013066445,0.00014699,101990.0,101980.0,0.196165]
[1738013066647,0.00014699,101990.0,101980.0,0.556965]
[1738013066846,0.00014699,101990.0,101980.0,0.76987905]
[1738013067055,0.3608,102010.0,102000.0,0.196127]
[1738013067248,0.556908,102010.0,102000.0,0.40904105]
[1738013067554,0.3608,102010.0,102000.0,0.40904105]
[1738013067751,0.556908,102010.0,102000.0,0.40904105]
[1738013067951,0.556908,102010.0,102000.0,0.196127]
[1738013069353,0.558908,102010.0,102000.0,0.196127]
[1738013069651,0.558908,102010.0,102000.0,0.197127]
[1738013069652,0.565908,102010.0,102000.0,0.197127]
[1738013070147,0.565908,102010.0,102000.0,0.001]
[1738013070546,0.565908,102010.0,102000.0,0.197127]
[1738013071150,0.3698,102010.0,102000.0,0.197127]
[1738013071352,0.4867427,102010.0,102000.0,0.197127]
[1738013072756,0.4867427,102010.0,102000.0,1.697127]
[1738013073349,0.6828507,102010.0,102000.0,1.697127]
[1738013073548,0.6828507,102010.0,102000.0,1.501]
[1738013073754,0.196127,102000.0,101990.0,0.00014699]
[1738013073955,0.196127,102000.0,101960.0,0.09102406]
[1738013073956,0.62274605,102000.0,101960.0,0.19631806]
[1738013074154,0.556984,101970.0,101960.0,1.69631806]
[1738013074558,0.556984,101970.0,101960.0,1.70672521]
[1738013075161,0.556984,101970.0,101960.0,1.69631806]
[1738013076358,0.556984,101970.0,101960.0,1.69931806]
[1738013076560,0.3608,101970.0,101960.0,1.69931806]
[1738013076860,0.3608,101970.0,101960.0,1.91423211]
[1738013077959,0.3608,101970.0,101960.0,1.71803811]
[1738013078259,0.55711299,101980.0,101970.0,0.196184]
[1738013078455,0.36094699,101980.0,101970.0,0.196184]
[1738013079254,0.55711199,101980.0,101970.0,0.196184]
[1738013079460,0.55711199,101980.0,101970.0,0.003]
[1738013079651,0.196184,101970.0,101960.0,0.002]
[1738013079856,0.196204,101960.0,101950.0,0.00014699]
[1738013080060,0.557004,101960.0,101950.0,0.00014699]
[1738013080360,0.3608,101960.0,101950.0,0.19636999]
[1738013081157,0.3608,101960.0,101950.0,0.19936999]
[1738013081359,0.557004,101960.0,101950.0,0.19936999]
[1738013081660,0.557004,101960.0,101950.0,0.00514699]
[1738013082057,0.557004,101960.0,101950.0,0.1754826]
[1738013082263,0.557009,101960.0,101940.0,0.71065664]
[1738013082463,0.3608,101950.0,101940.0,0.71065664]
[1738013082665,0.3608,101950.0,101940.0,2.21065664]
[1738013083464,0.3608,101950.0,101940.0,2.21165664]
[1738013083871,0.3608,101950.0,101940.0,2.21365664]
[1738013083872,0.557023,101950.0,101940.0,2.21365664]
[1738013084871,0.557023,101950.0,101940.0,2.01742464]
[1738013086367,0.557023,101950.0,101940.0,1.50447115]
[1738013086670,0.557023,101950.0,101940.0,0.00447115]
[1738013086871,0.196242,101940.0,101930.0,0.00014699]
[1738013087062,0.196299,101920.0,101900.0,0.01020289]
[1738013087372,0.557103,101910.0,101890.0,1.78460603]
[1738013087568,0.3608,101900.0,101890.0,1.78460603]
[1738013088486,0.3608,101900.0,101890.0,1.79505359]
[1738013088876,0.3608,101900.0,101890.0,2.00796764]
[1738013089579,0.3608,101900.0,101890.0,2.00996764]
[1738013089787,0.3608,101900.0,101890.0,2.01096764]
[1738013089981,0.557119,101900.0,101890.0,2.01096764]
[1738013090377,0.557119,101900.0,101890.0,0.003]
[1738013092286,0.557119,101900.0,101890.0,0.001]
[1738013092488,0.557119,101900.0,101890.0,0.003]
[1738013092883,0.557119,101900.0,101890.0,0.001]
[1738013093082,0.196339,101890.0,101880.0,0.00014699]
[1738013093382,0.196339,101890.0,101860.0,0.196395]
[1738013093383,0.196366,101880.0,101860.0,0.196395]
[1738013093697,0.7216,101870.0,101860.0,0.196395]
[1738013094486,0.7216,101870.0,101860.0,0.197395]
[1738013094890,0.7216,101870.0,101860.0,0.001]
[1738013095090,0.917977,101870.0,101860.0,0.001]
[1738013095585,0.196396,101860.0,101850.0,0.00014699]
[1738013095788,0.557196,101860.0,101850.0,0.00014699]
[1738013096290,0.77011005,101860.0,101850.0,0.00014699]
[1738013096797,0.76711005,101860.0,101850.0,0.00014699]
[1738013097095,0.3608,101860.0,101850.0,0.00014699]
[1738013097289,0.3608,101860.0,101850.0,0.19656299]
[1738013097491,0.3608,101860.0,101850.0,0.51617704]
[1738013097688,0.3608,101860.0,101850.0,2.01717704]
[1738013097889,0.3608,101860.0,101850.0,1.80426299]
[1738013098289,0.3608,101870.0,101860.0,0.196396]
[1738013099198,0.3608,101870.0,101850.0,1.86394699]
[1738013099491,0.77011005,101860.0,101850.0,0.00114699]
[1738013099790,0.77011005,101860.0,101840.0,0.00147214]
[1738013099791,0.196416,101850.0,101840.0,0.00147214]
[1738013099996,0.557216,101850.0,101840.0,0.00147214]
[1738013101190,0.77013005,101850.0,101840.0,0.00247214]
[1738013101399,0.196435,101840.0,101830.0,9.802e-05]
[1738013101596,0.557235,101840.0,101830.0,9.802e-05]
[1738013102902,0.557235,101840.0,101830.0,0.00209802]
[1738013103599,0.557235,101840.0,101830.0,1.50209802]
[1738013103786,0.557235,101840.0,101830.0,1.50309802]
[1738013104696,0.3608,101850.0,101840.0,0.196428]
[1738013105105,0.00014699,101860.0,101850.0,0.196416]
[1738013105400,0.62321963,101880.0,101860.0,0.196378]
[1738013105600,0.62321963,101880.0,101860.0,0.21291405]
[1738013105796,0.62321963,101880.0,101870.0,0.196377]
[1738013106802,0.26241963,101880.0,101870.0,0.196377]
[1738013107002,0.62321963,101880.0,101870.0,0.196377]
[1738013107203,0.4777427,101880.0,101870.0,0.196377]
[1738013107506,0.1169427,101880.0,101870.0,0.40929105]
[1738013107701,0.1299427,101880.0,101870.0,0.40929105]
[1738013108205,0.1239427,101880.0,101870.0,0.40929105]
[1738013108499,0.1189427,101880.0,101870.0,0.40929105]
[1738013108692,0.1199427,101880.0,101870.0,0.40929105]
[1738013109319,0.6771007,101880.0,101870.0,0.40929105]
[1738013109695,0.4807427,101880.0,101870.0,0.40929105]
[1738013109892,0.1199427,101880.0,101870.0,0.77009105]
[1738013110096,0.14695018,101900.0,101870.0,0.87371405]
[1738013110296,0.14547693,101900.0,101890.0,0.77005305]
[1738013110501,0.11635318,101910.0,101890.0,0.57371405]
[1738013110701,0.11635318,101910.0,101900.0,0.557119]
[1738013110911,0.557064,101930.0,101900.0,1.8608]
[1738013111097,0.7216,101910.0,101870.0,0.21438622]
[1738013111301,0.557153,101890.0,101880.0,0.196354]
[1738013111500,0.558121,101900.0,101890.0,0.196338]
[1738013111701,0.558121,101900.0,101890.0,2.27005205]
[1738013111702,0.001,101900.0,101890.0,2.27005205]
[1738013112194,0.558119,101900.0,101880.0,0.40926605]
[1738013112398,0.557139,101890.0,101880.0,0.40926605]
[1738013112604,0.558124,101900.0,101890.0,0.198339]
[1738013112904,0.197324,101900.0,101890.0,0.198339]
[1738013113109,0.001,101900.0,101890.0,0.559139]
[1738013113605,0.001,101900.0,101890.0,2.059139]
[1738013114215,0.001,101900.0,101890.0,2.269039]
[1738013114413,0.00014699,101910.0,101900.0,0.196319]
[1738013114602,0.00014699,101910.0,101900.0,0.40923305]
[1738013115003,0.19644699,101910.0,101900.0,0.40923305]
[1738013115213,0.55724699,101910.0,101900.0,0.40923305]
[1738013115910,0.19644699,101910.0,101900.0,0.40923305]
[1738013116107,0.19644699,101910.0,101900.0,0.41123305]
[1738013116307,0.00014699,101910.0,101900.0,0.41123305]
[1738013116516,0.196246,101940.0,101930.0,0.196248]
[1738013116810,0.3608,101940.0,101930.0,0.40916205]
[1738013117013,0.557042,101940.0,101930.0,0.40916205]
[1738013117612,0.3608,101940.0,101920.0,0.196275]
[1738013117910,0.557062,101930.0,101920.0,0.00014699]
[1738013118108,0.557062,101930.0,101890.0,0.575186]
[1738013118109,0.196308,101910.0,101890.0,0.410719]
[1738013118303,0.557119,101900.0,101890.0,0.00147195]
[1738013119103,0.662719,101900.0,101890.0,0.00147195]
[1738013120399,0.662719,101900.0,101890.0,0.00347195]
[1738013120400,0.3608,101900.0,101890.0,0.00347195]
[1738013120613,0.36094699,101910.0,101900.0,0.19632]
[1738013120815,0.00014699,101910.0,101900.0,0.33509713]
[1738013121111,0.00014699,101910.0,101900.0,0.19632]
[1738013121315,0.00014699,101910.0,101900.0,1.69632]
[1738013121805,0.36094699,101910.0,101900.0,1.69513795]
[1738013122015,0.00014699,101910.0,101900.0,2.19671508]
[1738013122313,0.3608,101930.0,101920.0,0.196281]
[1738013123100,0.557074,101930.0,101910.0,0.196296]
[1738013123415,0.557081,101920.0,101910.0,0.19644299]
[1738013123809,0.53708008,101930.0,101910.0,0.49972412]
[1738013124110,0.53708008,101930.0,101920.0,0.33505813]
[1738013124312,0.17628008,101930.0,101920.0,0.69585813]
[1738013124513,0.17628008,101930.0,101920.0,0.83463526]
[1738013124711,0.17628008,101930.0,101920.0,0.69585813]
[1738013125017,0.17628008,101930.0,101920.0,0.83463526]
[1738013125400,0.17628008,101930.0,101920.0,0.94303526]
[1738013126417,0.17728008,101930.0,101920.0,0.94303526]
[1738013126718,0.17728008,101930.0,101920.0,2.30425813]
[1738013126908,0.17728008,101930.0,101920.0,2.44303526]
[1738013127126,0.20413269,101940.0,101930.0,0.196262]
[1738013127315,0.20413269,101940.0,101930.0,0.69583913]
[1738013127518,0.49539385,101950.0,101930.0,0.49957713]
[1738013127819,0.49539385,101950.0,101940.0,0.69581913]
[1738013128009,0.87933743,101960.0,101950.0,0.196223]
[1738013128209,0.196223,101950.0,101940.0,0.557036]
[1738013128409,0.196223,101950.0,101940.0,0.196236]
[1738013129013,0.49957713,101950.0,101930.0,1.50214699]
[1738013129223,0.557042,101940.0,101930.0,0.00214699]
[1738013129406,0.557042,101940.0,101930.0,0.00314699]
[1738013129407,0.658642,101940.0,101930.0,0.00314699]
[1738013129611,0.658642,101940.0,101930.0,0.19940899]
[1738013130120,0.297842,101940.0,101930.0,0.19940899]
[1738013130322,0.658642,101940.0,101930.0,0.00314699]
[1738013130514,0.658642,101940.0,101930.0,0.00114699]
[1738013130819,0.658642,101940.0,101930.0,0.00014699]
[1738013131017,0.658642,101940.0,101930.0,0.19740899]
[1738013131207,0.65023713,101940.0,101900.0,0.00014411]
[1738013131407,0.196288,101920.0,101910.0,0.1963]
[1738013131612,0.557065,101930.0,101920.0,0.196281]
[1738013131817,0.196281,101920.0,101910.0,1.696297]
[1738013132022,0.1963,101910.0,101900.0,0.19646111]
[1738013132315,0.5571,101910.0,101900.0,0.00014411]
[1738013132511,0.5571,101910.0,101900.0,0.19746311]
[1738013132712,0.5571,101910.0,101900.0,0.33624024]
[1738013133215,0.5571,101910.0,101900.0,1.83624024]
[1738013133819,0.5571,101910.0,101900.0,1.69746311]
[1738013134721,0.5551,101910.0,101900.0,1.69746311]
[1738013135318,0.5551,101910.0,101900.0,1.69946311]
[1738013135516,0.3608,101910.0,101900.0,1.83824024]
[1738013135711,0.55723199,101920.0,101910.0,0.1963]
[1738013135712,0.36094699,101920.0,101910.0,0.1963]
[1738013136022,0.00014699,101920.0,101910.0,0.33507713]
[1738013136421,0.00014699,101920.0,101910.0,1.83507713]
[1738013136617,0.00014699,101920.0,101910.0,2.19587713]
[1738013137017,0.00014699,101920.0,101910.0,2.19687713]
[1738013137223,0.00014699,101920.0,101910.0,1.83607713]
[1738013137412,0.19642799,101920.0,101910.0,1.6973]
[1738013138024,0.55722799,101920.0,101910.0,1.6993]
[1738013138915,0.00014699,101920.0,101910.0,2.19887713]
[1738013139813,0.00014699,101920.0,101910.0,1.83807713]
[1738013141117,0.00014699,101920.0,101910.0,2.19887713]
[1738013141427,0.08773417,101930.0,101920.0,0.196281]
[1738013141612,0.08773417,101930.0,101920.0,0.80255813]
[1738013141816,0.08773417,101930.0,101920.0,0.69585813]
[1738013142121,0.64479617,101930.0,101920.0,0.196281]
[1738013142426,0.196281,101920.0,101910.0,1.69744299]
[1738013142626,0.555081,101920.0,101910.0,0.00014699]
[1738013142821,0.654181,101920.0,101910.0,0.00014699]
[1738013144111,0.654181,101920.0,101910.0,0.00114699]
[1738013144320,0.80002191,101920.0,101910.0,0.00114699]
[1738013144519,0.80002191,101920.0,101910.0,0.00314699]
[1738013144912,0.1963,101910.0,101900.0,1.50014411]
[1738013145125,0.5571,101910.0,101900.0,1.50014411]
[1738013145321,0.79957713,101910.0,101890.0,0.00147195]
[1738013145519,0.196397,101860.0,101850.0,0.51462486]
[1738013145721,0.557197,101860.0,101850.0,0.51462486]
[1738013145924,0.557197,101860.0,101850.0,2.01462486]
[1738013146416,0.554197,101860.0,101850.0,2.01462486]
[1738013146817,0.3608,101860.0,101850.0,2.34981799]
[1738013147319,0.3608,101860.0,101850.0,2.35081799]
[1738013147522,0.50664091,101860.0,101850.0,1.83619313]
[1738013147827,0.14584091,101860.0,101850.0,1.83619313]
[1738013148025,0.14584091,101860.0,101850.0,1.83719313]
[1738013148632,0.50664091,101860.0,101850.0,1.83719313]